{"text_format":"1","workbook":"xlsx","n_sheets":1,"sheets":["2024"],"not_rendered":{"charts":0,"images":1,"macros":0,"external_links":0,"defined_names":1,"comments":0,"pivot_tables":0},"unopened":[],"bounds":{"document_bytes":16777216,"sheet_cells":100000,"rows_first":2000,"rows_last":500,"rows_between":2000,"halvings":0,"cell_chars":16384,"cell_head_chars":4096},"cells_cut":0,"cells_raw":0,"read":"whole","date_system":"1900"}

{"sheet":"2024","index":0,"n_rows":164,"n_cols":16,"rows_kept":164,"cut":false,"hidden":false,"merged":[[11,12,11,13],[11,9,11,11],[3,1,3,5],[4,1,4,5],[5,1,5,3]]}
["pelargonium peltatum / zonale - mladé rostliny na multiplatech - 2024"]
["objednávkový formulář - kupní smlouva mezi"]
["odběratel"]
["firma"]
["adresa"]
["IČ/DIČ"]
["dodavatel"]
["FLORENSIS HOLLAND B.V. zastoupený THOOLEN s.r.o., IČ 48950700 Rakovník"]
[]
["ceny jsou uváděny v Kč, vč.dopravy na místo určení a licenčních poplatků",null,null,null,null,null,null,"týden dodání",null,6,8,10]
["PAPERPOTS  3 cm / 4 cm",null,null,null,null,null,null,"počet plat celkem",{"$f":"J11+K11+L11","v":0},{"$f":"SUM(J14:J1143)","v":0},{"$f":"SUM(K14:K143)","v":0},{"$f":"SUM(L14:L143)","v":0},null,null,{"$f":"SUM(O14:O1138)","v":0},{"$f":"SUM(P14:P1138)","v":0}]
[null,null,null,null,null,null,null,null,null,"expedice",null,null,"CENA"]
[" odrůda","list","vzrůst","květ","skupina","druh","barva","plato","gar.","7.2","21.2","6.3","rostlina","plato","za objed.","s DPH"]
["zonale","zelený list","X line","raná","Trend","Emilia"," Orange",126,124,null,null,null,8.6,1066.4000000000001,{"$f":"N14*(L14+K14+J14)","v":0},{"$f":"O14*1.15","v":0}]
["zonale","zelený list","X line","raná","Trend","Gesa"," Light Pink",126,124,null,null,null,8.6,1066.4000000000001,{"$f":"N15*(L15+K15+J15)","v":0},{"$f":"O15*1.15","v":0}]
["zonale","zelený list","X line","vel.raná","Trend","Hanna"," Hot Pink",126,124,null,null,null,8.6,1066.4000000000001,0,0]
["zonale","zelený list","X line","raná","Trend","Julia"," Red ",126,124,null,null,null,8.6,1066.4000000000001,0,0]
["zonale","zelený list","X line","raná","Trend","Lasse"," White",126,124,null,null,null,8.6,1066.4000000000001,0,0]
["zonale","zelený list","X line","raná","Trend","Lilac"," Lilac ",126,124,null,null,null,8.6,1066.4000000000001,0,0]
["zonale","zelený list","X line","raná","Trend","Nora"," Salmon",126,124,null,null,null,8.6,1066.4000000000001,0,0]
["zonale","zelený list","X line","raná","Trend","Red"," Red ",126,124,null,null,null,8.6,1066.4000000000001,0,0]
["zonale","zelený list","X line","raná","Trend","Salmon"," Salmon",126,124,null,null,null,8.6,1066.4000000000001,0,0]
["zonale","zelený list","X line","raná","Trend","Sophie"," Dark Red",126,124,null,null,null,8.6,1066.4000000000001,0,0]
["zonale","zelený list","X line","stř.raná","Trend","Vera"," Pink Eye",126,124,null,null,null,8.6,1066.4000000000001,0,0]
["zonale","zelený list","X line","raná","Trend","Yvonne"," Neon",126,124,null,null,null,8.6,1066.4000000000001,0,0]
[]
["zonale","zelený list","M line","raná","Smart","Carla"," Hot Pink",126,124,null,null,null,8.6,1066.4000000000001,0,0]
["zonale","zelený list","M line","raná","Smart","Jenny"," White",126,124,null,null,null,8.6,1066.4000000000001,0,0]
["zonale","zelený list","M line","raná","Smart","Katarina"," Lilac",126,124,null,null,null,8.6,1066.4000000000001,0,0]
["zonale","zelený list","M line","raná","Smart","Laura"," Purple",126,124,null,null,null,8.6,1066.4000000000001,0,0]
["zonale","zelený list","M line","raná","Smart","Lenja"," Salmon",126,124,null,null,null,8.6,1066.4000000000001,0,0]
["zonale","zelený list","M line","raná","Smart","Light Pink"," Light Pink ",126,124,null,null,null,8.6,1066.4000000000001,0,0]
["zonale","zelený list","M line","raná","Smart","Maria"," Scarlet",126,124,null,null,null,8.6,1066.4000000000001,0,0]
["zonale","zelený list","M line","raná","Smart","Marianne"," Lilac",126,124,null,null,null,8.6,1066.4000000000001,0,0]
["zonale","zelený list","M line","raná","Smart","Nina"," Pink With Eye",126,124,null,null,null,8.6,1066.4000000000001,0,0]
["zonale","zelený list","M line","vel.raná","Smart","Patricia"," Orange",126,124,null,null,null,8.6,1066.4000000000001,0,0]
["zonale","zelený list","M line","raná","Smart","Senna"," Red",126,124,null,null,null,8.6,1066.4000000000001,0,0]
["zonale","zelený list","M line","raná","Smart","Splash"," White Eye",126,124,null,null,null,8.6,1066.4000000000001,0,0]
[]
["zonale","tmavý list","M line","vel.raná","Dolce Vita","Anne"," Pink",126,124,null,null,null,8.6,1066.4000000000001,0,0]
["zonale","tmavý list","M line","raná","Dolce Vita","Claudio"," Rose Eye",126,124,null,null,null,8.6,1066.4000000000001,0,0]
["zonale","tmavý list","M line","raná","Dolce Vita","Emma"," Salmon",126,124,null,null,null,8.6,1066.4000000000001,0,0]
["zonale","tmavý list","M line","stř.raná","Dolce Vita","Erika"," White",126,124,null,null,null,8.6,1066.4000000000001,0,0]
["zonale","tmavý list","M line","raná","Dolce Vita","Evi"," Blue",126,124,null,null,null,8.6,1066.4000000000001,0,0]
["zonale","tmavý list","M line","raná","Dolce Vita","Gisela"," Dark Red",126,124,null,null,null,8.6,1066.4000000000001,0,0]
["zonale","tmavý list","M line","vel.raná","Dolce Vita","Karen"," Light Pink",126,124,null,null,null,8.6,1066.4000000000001,0,0]
["zonale","tmavý list","M line","vel.raná","Dolce Vita","Klaas"," Lilac",126,124,null,null,null,8.6,1066.4000000000001,0,0]
["zonale","tmavý list","M line","vel.raná","Dolce Vita","Linus"," Pink Eye",126,124,null,null,null,8.6,1066.4000000000001,0,0]
["zonale","tmavý list","M line","vel.raná","Dolce Vita","Lisa"," Hot Coral",126,124,null,null,null,8.6,1066.4000000000001,0,0]
["zonale","tmavý list","M line","raná","Dolce Vita","Mia"," Purple Eye",126,124,null,null,null,8.6,1066.4000000000001,0,0]
["zonale","tmavý list","M line","raná","Dolce Vita","Milou"," Light Salmon",126,124,null,null,null,8.6,1066.4000000000001,0,0]
["zonale","tmavý list","M line","raná","Dolce Vita","Mylena"," Red",126,124,null,null,null,8.6,1066.4000000000001,0,0]
["zonale","tmavý list","M line","raná","Dolce Vita","Stella"," White Sparkle",126,124,null,null,null,8.6,1066.4000000000001,0,0]
["zonale","tmavý list","M line","raná","Dolce Vita","Sylvia"," Orange",126,124,null,null,null,8.6,1066.4000000000001,0,0]
[]
["zonale","tmavý list","C line","raná","Castello","Baldo"," Lilac Eye",126,124,null,null,null,8.6,1066.4000000000001,0,0]
["zonale","tmavý list","C line","raná","Castello","Benja"," Pink",126,124,null,null,null,8.6,1066.4000000000001,0,0]
["zonale","tmavý list","C line","raná","Castello","Bernd"," Dark Red",126,124,null,null,null,8.6,1066.4000000000001,0,0]
["zonale","tmavý list","C line","vel.raná","Castello","Claire"," Rose Red Eye",126,124,null,null,null,8.6,1066.4000000000001,0,0]
["zonale","tmavý list","C line","raná","Castello","Isabella"," White",126,124,null,null,null,8.6,1066.4000000000001,0,0]
["zonale","tmavý list","C line","raná","Castello","Lea"," Violet",126,124,null,null,null,8.6,1066.4000000000001,0,0]
["zonale","tmavý list","C line","raná","Castello","Naomi"," Purple",126,124,null,null,null,8.6,1066.4000000000001,0,0]
["zonale","tmavý list","C line","raná","Castello","Raiko"," Lavender Eye",126,124,null,null,null,8.6,1066.4000000000001,0,0]
["zonale","tmavý list","C line","raná","Castello","Ronja"," Red",126,124,null,null,null,8.6,1066.4000000000001,0,0]
["zonale","tmavý list","C line","stř.raná","Castello","Sören"," Salmon",126,124,null,null,null,8.6,1066.4000000000001,0,0]
["zonale","tmavý list","C line","raná","Castello","Tammo"," Rose Eye",126,124,null,null,null,8.6,1066.4000000000001,0,0]
["zonale","tmavý list","C line","raná","Castello","Tessa"," Blue",126,124,null,null,null,8.6,1066.4000000000001,0,0]
[]
["peltatum","zelený list","XXL line","vel.raná","Big Five®","Big 5 Amethyst"," Amethyst (Malva) ",126,124,null,null,null,8.6,1066.4000000000001,0,0]
["peltatum","zelený list","XXL line","vel.raná","Big Five®","Big 5 Neon Pink"," Pink (India)  ",126,124,null,null,null,8.6,1066.4000000000001,0,0]
["peltatum","zelený list","XXL line","vel.raná","Big Five®","Big 5 Red"," Red (Red Devil)",126,124,null,null,null,8.6,1066.4000000000001,0,0]
["peltatum","zelený list","XXL line","vel.raná","Big Five®","Big 5 Soft Light Pink"," Soft Rose",126,124,null,null,null,8.6,1066.4000000000001,0,0]
["peltatum","zelený list","XXL line","vel.raná","Big Five®","Big 5 White Angel"," White",126,124,null,null,null,8.6,1066.4000000000001,0,0]
[]
["peltatum","zelený list","X line","raná","Sunflair®","Amethyst"," Amethyst",126,124,null,null,null,8.6,1066.4000000000001,0,0]
["peltatum","zelený list","X line","raná","Sunflair®","Amy"," Amethyst",126,124,null,null,null,8.6,1066.4000000000001,0,0]
["peltatum","zelený list","X line","raná","Sunflair®","Eva"," White",126,124,null,null,null,8.6,1066.4000000000001,0,0]
["peltatum","zelený list","X line","raná","Sunflair®","Chris"," Lollipop -  Red",126,124,null,null,null,8.6,1066.4000000000001,0,0]
["peltatum","zelený list","X line","raná","Sunflair®","Josina"," Hot Pink",126,124,null,null,null,8.6,1066.4000000000001,{"$f":"N79*(L79+K79+J79)","v":0},{"$f":"O79*1.15","v":0}]
["peltatum","zelený list","X line","raná","Sunflair®","Linda"," Pink",126,124,null,null,null,8.6,1066.4000000000001,0,0]
["peltatum","zelený list","X line","raná","Sunflair®","Lollipop Candy"," Lollipop - Pink",126,124,null,null,null,8.6,1066.4000000000001,0,0]
["peltatum","zelený list","X line","raná","Sunflair®","Paula"," Red",126,124,null,null,null,8.6,1066.4000000000001,0,0]
["peltatum","zelený list","X line","raná","Sunflair®","Ruben"," Dark Red",126,124,null,null,null,8.6,1066.4000000000001,0,0]
[]
["peltatum","zelený list","M line","vel.raná","Medio","Ana"," Pink",126,124,null,null,null,8.6,1066.4000000000001,0,0]
["peltatum","zelený list","M line","vel.raná","Medio","Erke"," Pink",126,124,null,null,null,8.6,1066.4000000000001,0,0]
["peltatum","zelený list","M line","raná","Medio","Gabry"," Red",126,124,null,null,null,8.6,1066.4000000000001,0,0]
["peltatum","zelený list","M line","vel.raná","Medio","Karolina"," Dark Red",126,124,null,null,null,8.6,1066.4000000000001,0,0]
["peltatum","zelený list","M line","raná","Medio","Lona"," White",126,124,null,null,null,8.6,1066.4000000000001,0,0]
["peltatum","zelený list","M line","raná","Medio","Mariska"," Lollipop - Dark Red",126,124,null,null,null,8.6,1066.4000000000001,0,0]
["peltatum","zelený list","M line","vel.raná","Medio","Marlen"," Amethyst",126,124,null,null,null,8.6,1066.4000000000001,0,0]
["peltatum","zelený list","M line","raná","Medio","Nixe"," Lollipop - Dark Red",126,124,null,null,null,8.6,1066.4000000000001,0,0]
["peltatum","zelený list","M line","raná","Medio","Rita"," Hot Pink",126,124,null,null,null,8.6,1066.4000000000001,0,0]
["peltatum","zelený list","M line","stř.raná","Medio","Teske"," Lavender      ",126,124,null,null,null,8.6,1066.4000000000001,0,0]
[]
["peltatum","tmavý list","M line","raná","Moonflair®"," Amethyst"," Amethyst",126,124,null,null,null,8.6,1066.4000000000001,0,0]
["peltatum","tmavý list","M line","raná","Moonflair®"," Burgundy"," Burgundy",126,124,null,null,null,8.6,1066.4000000000001,0,0]
["peltatum","tmavý list","M line","raná","Moonflair®"," Dark Pink"," Dark Pink",126,124,null,null,null,8.6,1066.4000000000001,0,0]
["peltatum","tmavý list","M line","raná","Moonflair®"," Light Pink","    Light Pink",126,124,null,null,null,8.6,1066.4000000000001,0,0]
["peltatum","tmavý list","M line","raná","Moonflair®"," Lollipop Red","    Lollipop Red",126,124,null,null,null,8.6,1066.4000000000001,0,0]
["peltatum","tmavý list","M line","raná","Moonflair®"," Red"," Red",126,124,null,null,null,8.6,1066.4000000000001,0,0]
["peltatum","tmavý list","M line","raná","Moonflair®"," White"," White",126,124,null,null,null,8.6,1066.4000000000001,0,0]
[]
["peltatum","jednoduché","M line","stř.raná","Villetta","Burgundy White"," Burgundy White",126,124,null,null,null,8.6,1066.4000000000001,0,0]
["peltatum","jednoduché","M line","stř.raná","Villetta","Lilac"," Lilac",126,124,null,null,null,8.6,1066.4000000000001,0,0]
["peltatum","jednoduché","M line","stř.raná","Villetta","Neon Rose"," Neon Rose",126,124,null,null,null,8.6,1066.4000000000001,0,0]
["peltatum","jednoduché","M line","stř.raná","Villetta","Red"," Red",126,124,null,null,null,8.6,1066.4000000000001,0,0]
["peltatum","jednoduché","M line","raná","Villetta","White                           "," White                           ",126,124,null,null,null,8.6,1066.4000000000001,0,0]
[]
["peltatum","jednoduché","X line","vel.raná","Rainbow®","Amethyst"," Amethyst",126,124,null,null,null,8.6,1066.4000000000001,0,0]
["peltatum","jednoduché","X line","vel.raná","Rainbow®","Neon Purple"," Neon Purple",126,124,null,null,null,8.6,1066.4000000000001,0,0]
["peltatum","jednoduché","X line","vel.raná","Rainbow®","Red"," Red",126,124,null,null,null,8.6,1066.4000000000001,0,0]
["peltatum","jednoduché","X line","vel.raná","Rainbow®","Rose"," Rose",126,124,null,null,null,8.6,1066.4000000000001,0,0]
["peltatum","jednoduché","X line","vel.raná","Rainbow®","White"," White",126,124,null,null,null,8.6,1066.4000000000001,0,0]
[]
["peltatum","jednoduché","X line","raná","Balcon","Noa","neon-pink",126,124,null,null,null,8.6,1066.4000000000001,0,0]
["peltatum","jednoduché","M line","raná","Balcon","Noa Compact","neon-pink",126,124,null,null,null,8.6,1066.4000000000001,0,0]
["peltatum","jednoduché","X line","raná","Balcon","Polar","weiss",126,124,null,null,null,8.6,1066.4000000000001,0,0]
["peltatum","jednoduché","X line ","stř.raná","Balcon","Ville de Paris","Bicolor",126,124,null,null,null,8.6,1066.4000000000001,0,0]
["peltatum","jednoduché","X line ","stř.raná","Balcon","Ville de Paris","Compact Bicolor",126,124,null,null,null,8.6,1066.4000000000001,0,0]
["peltatum","jednoduché","X line ","stř.raná","Balcon","Ville de Paris","Compact Cherry Pink",126,124,null,null,null,8.6,1066.4000000000001,0,0]
["peltatum","jednoduché","X line ","stř.raná","Balcon","Ville de Paris","Compact Lila",126,124,null,null,null,8.6,1066.4000000000001,0,0]
["peltatum","jednoduché","X line ","stř.raná","Balcon","Ville de Paris","Compact Rosa",126,124,null,null,null,8.6,1066.4000000000001,0,0]
["peltatum","jednoduché","X line ","stř.raná","Balcon","Ville de Paris","Cherry Pink",126,124,null,null,null,8.6,1066.4000000000001,0,0]
["peltatum","jednoduché","X line ","stř.raná","Balcon","Ville de Paris","Lila",126,124,null,null,null,8.6,1066.4000000000001,0,0]
["peltatum","jednoduché","X line ","stř.raná","Balcon","Ville de Paris","Rosa",126,124,null,null,null,8.6,1066.4000000000001,0,0]
[]
["zonale","plnokvěté","XX line","raná","specials","Galaxy","Dark Red  ",126,124,null,null,null,9.1999999999999993,1140.8,0,0]
["zonale","plnokvěté","XX line","raná","specials","Galaxy","Red  ",126,124,null,null,null,9.1999999999999993,1140.8,0,0]
["zonale","plnokvěté","XX line","raná","specials","Galaxy","Rose  ",126,124,null,null,null,9.1999999999999993,1140.8,0,0]
["zonale","plnokvěté","XX line","raná","specials","Galaxy","Salmon  ",126,124,null,null,null,9.1999999999999993,1140.8,0,0]
["zonale","plnokvěté","XX line","raná","specials","Galaxy","Violet  ",126,124,null,null,null,9.1999999999999993,1140.8,0,0]
["zonale","plnokvěté","XX line","raná","specials","Galaxy","White  ",126,124,null,null,null,9.1999999999999993,1140.8,0,0]
[]
["peltatum","plnokvěté","X line","raná","specials","Xtreme","Lilac",126,124,null,null,null,9.1999999999999993,1140.8,0,0]
["peltatum","plnokvěté","X line","raná","specials","Xtreme","Scarlet",126,124,null,null,null,9.1999999999999993,1140.8,0,0]
["peltatum","plnokvěté","X line","raná","specials","Xtreme","Mila - Dark Red",126,124,null,null,null,9.1999999999999993,1140.8,0,0]
[]
["zonale","plnokvěté","M line","raná","specials","Coral Eye","Hot Spot Coral",126,124,null,null,null,8.6,1066.4000000000001,0,0]
["zonale","plnokvěté","M line","stř.raná","specials","Estelle","Appleblossom",126,124,null,null,null,8.6,1066.4000000000001,0,0]
["zonale","jednoduché","M line","stř.raná","specials","Friesia","Red",126,124,null,null,null,8.6,1066.4000000000001,0,0]
["zonale","plnokvěté","M line","raná","specials","Nancy","Purple Eye",126,124,null,null,null,8.6,1066.4000000000001,0,0]
[]
["zonale","jednoduchá","M line","stř.raná","barevný list","Frank Headley","Salmon",84,82,null,null,null,9.3000000000000007,762.6,{"$f":"N144*(L144+K144+J144)","v":0},{"$f":"O144*1.15","v":0}]
["zonale","jednoduchá","C line","stř.raná","barevný list","Lotusland","Rosa",84,82,null,null,null,9.3000000000000007,762.6,0,0]
["zonale","plná","L line","stř.raná","barevný list","Occold Shield","Orange Red",84,82,null,null,null,9.3000000000000007,762.6,0,0]
["zonale","jednoduchá","M line","stř.raná","barevný list","Mrs. Pollock","Red",84,82,null,null,null,9.3000000000000007,762.6,0,0]
["zonale","plná","L line","stř.raná","barevný list","Madame Salleron","Lilac Pink",84,82,null,null,null,9.3000000000000007,762.6,0,0]
["zonale","jednoduchá","C line","stř.raná","barevný list","Vancouver Centennial","Orange Red",84,82,null,null,null,9.3000000000000007,762.6,0,0]
["zonale","plná","X line","stř.raná","barevný list","Wilhelm Langguth","Red",84,82,null,null,null,9.3000000000000007,762.6,0,0]
[]
["mírně převislá","jednoduchá","M line","stř.raná","maceškovitá","PAC Angeleyes Randy","bílá, purpurový střed",126,124,null,null,null,10.8,1339.2,0,0]
["mírně převislá","jednoduchá","M line","stř.raná","maceškovitá","PAC Angeleyes Bicolor ","purpurovo-bílá",126,124,null,null,null,10.8,1339.2,0,0]
["mírně převislá","jednoduchá","M line","stř.raná","maceškovitá","PAC Angeleyes Blueberry","kombinace sv. a tm fialové",126,124,null,null,null,10.8,1339.2,0,0]
["mírně převislá","jednoduchá","M line","stř.raná","maceškovitá","PAC Angeleyes Burgundy","vínovo-fialová kombinace",126,124,null,null,null,10.8,1339.2,0,0]
[]
["zonale","jednoduchá","C line","pozdní","vonící","Attar of Roses","růže / sv. růžová",84,82,null,null,null,9.3000000000000007,762.6,0,0]
["zonale","jednoduchá","C line","pozdní","vonící","PAC Angels Perfume*","citron / vínovo-bílá",84,82,null,null,null,10.8,885.6,0,0]
["zonale","jednoduchá","C line","pozdní","vonící","Citriodorum","citron / sv. růžová",84,82,null,null,null,9.3000000000000007,762.6,0,0]
["zonale","jednoduchá","M line","pozdní","vonící","Fragrans","jablko a muškát.ořech / bílá",84,82,null,null,null,9.3000000000000007,762.6,0,0]
["zonale","jednoduchá","C line","pozdní","vonící","Lady Plymouth","růže a citron / drobné lehce fialové květy",84,82,null,null,null,9.3000000000000007,762.6,0,0]
["zonale","jednoduchá","M line","pozdní","vonící","Orange Fizz","pomeranč / levandulovo-fialová",84,82,null,null,null,9.3000000000000007,762.6,0,0]
["zonale","jednoduchá","M line","pozdní","vonící","Pink Capitatum","tropické ovoce / lehce růžová",84,82,null,null,null,9.3000000000000007,762.6,0,0]
["zonale","jednoduchá","C line","pozdní","vonící","Torento","coca-cola / sv. fialová",84,82,null,null,null,9.3000000000000007,762.6,0,0]